[Event "*** SCC Grand Prix: Titled Tuesday Blitz"]
[Site "Chess.com"]
[Date "2020.06.02"]
[Round "9"]
[White "Heineccius"]
[Black "grunbergmihai"]
[Result "1/2-1/2"]
[WhiteElo "2613"]
[BlackElo "2415"]
[TimeControl "180+1"]
[EndTime "11:45:38 PDT"]
[Termination "Game drawn by repetition"]

1. d4 {[%clk 0:03:00.9]} 1... f5 {[%clk 0:02:58.5]} 2. Nf3 {[%clk 0:03:00.4]}
2... Nf6 {[%clk 0:02:58.4]} 3. g3 {[%clk 0:03:00.9]} 3... g6 {[%clk 0:02:58.6]}
4. Bg2 {[%clk 0:03:01.3]} 4... Bg7 {[%clk 0:02:59]} 5. O-O {[%clk 0:03:01.4]}
5... O-O {[%clk 0:02:59.9]} 6. b3 {[%clk 0:03:01.8]} 6... a5 {[%clk 0:02:59.1]}
7. c4 {[%clk 0:02:59.5]} 7... c6 {[%clk 0:02:59.1]} 8. Nc3 {[%clk 0:02:58.3]}
8... Ne4 {[%clk 0:02:59.1]} 9. Bb2 {[%clk 0:02:57.7]} 9... d5 {[%clk 0:02:58.6]}
10. e3 {[%clk 0:02:43.5]} 10... Be6 {[%clk 0:02:57.3]} 11. cxd5 {[%clk
0:02:40.9]} 11... cxd5 {[%clk 0:02:56.3]} 12. Rc1 {[%clk 0:02:38.3]} 12... Nc6
{[%clk 0:02:55.8]} 13. Ne2 {[%clk 0:02:34.6]} 13... Bf7 {[%clk 0:02:53.2]} 14.
Nf4 {[%clk 0:02:34]} 14... e6 {[%clk 0:02:50.8]} 15. Nd3 {[%clk 0:02:32.1]}
15... a4 {[%clk 0:02:47.6]} 16. Nfe5 {[%clk 0:02:19.9]} 16... Nxe5 {[%clk
0:02:47]} 17. Nxe5 {[%clk 0:02:20.8]} 17... Be8 {[%clk 0:02:43.7]} 18. f3 {[%clk
0:02:10]} 18... Ng5 {[%clk 0:02:38.2]} 19. Ba3 {[%clk 0:02:08.1]} 19... Rf6
{[%clk 0:02:30.5]} 20. Qc2 {[%clk 0:01:57]} 20... Bf8 {[%clk 0:02:22.8]} 21.
Bxf8 {[%clk 0:01:55.2]} 21... Rxf8 {[%clk 0:02:22.7]} 22. b4 {[%clk 0:01:50.7]}
22... Nf7 {[%clk 0:02:21.1]} 23. Qc7 {[%clk 0:01:36.7]} 23... Nxe5 {[%clk
0:02:17.5]} 24. Qxe5 {[%clk 0:01:35.4]} 24... Qf6 {[%clk 0:02:14.2]} 25. Qxf6
{[%clk 0:01:31.7]} 25... Rxf6 {[%clk 0:02:13.8]} 26. Rc7 {[%clk 0:01:31.6]}
26... Rf7 {[%clk 0:02:10.8]} 27. Rfc1 {[%clk 0:01:31.3]} 27... Bc6 {[%clk
0:02:09.9]} 28. Rxf7 {[%clk 0:01:29.4]} 28... Kxf7 {[%clk 0:02:09.8]} 29. Bf1
{[%clk 0:01:21.3]} 29... Ke7 {[%clk 0:02:01.5]} 30. b5 {[%clk 0:01:17.7]} 30...
Bd7 {[%clk 0:02:01.4]} 31. Kf2 {[%clk 0:01:14.1]} 31... Kd6 {[%clk 0:02:00.4]}
32. f4 {[%clk 0:01:09.7]} 32... a3 {[%clk 0:01:58.7]} 33. Rc3 {[%clk 0:01:06.4]}
33... Ra5 {[%clk 0:01:55.6]} 34. b6 {[%clk 0:01:04.7]} 34... Bc6 {[%clk
0:01:46.4]} 35. Ke1 {[%clk 0:01:03.1]} 35... Ra4 {[%clk 0:01:45.3]} 36. Rb3
{[%clk 0:00:58.2]} 36... h6 {[%clk 0:01:37.6]} 37. Kd2 {[%clk 0:00:58.2]} 37...
g5 {[%clk 0:01:37.4]} 38. Kc3 {[%clk 0:00:57.4]} 38... gxf4 {[%clk 0:01:35.7]}
39. gxf4 {[%clk 0:00:55.8]} 39... Ra8 {[%clk 0:01:34.8]} 40. Kb4 {[%clk
0:00:45]} 40... Ra4+ {[%clk 0:01:32.8]} 41. Kc3 {[%clk 0:00:44.8]} 41... Ra8
{[%clk 0:01:33]} 42. Kb4 {[%clk 0:00:43.1]} 42... Ra4+ {[%clk 0:01:32.4]} 43.
Kc3 {[%clk 0:00:42.7]} 1/2-1/2

[Event "*** SCC Grand Prix: Titled Tuesday Blitz"]
[Site "Chess.com"]
[Date "2020.06.02"]
[Round "9"]
[White "Jungle_Jaguar"]
[Black "boasovietica"]
[Result "0-1"]
[WhiteElo "2581"]
[BlackElo "2444"]
[TimeControl "180+1"]
[EndTime "11:45:38 PDT"]
[Termination "boasovietica won on time"]

1. e4 {[%clk 0:02:43.9]} 1... e5 {[%clk 0:02:58.6]} 2. Nf3 {[%clk 0:02:44]} 2...
Nc6 {[%clk 0:02:57.8]} 3. Bb5 {[%clk 0:02:44.7]} 3... a6 {[%clk 0:02:57.6]} 4.
Ba4 {[%clk 0:02:44.5]} 4... Nf6 {[%clk 0:02:57.8]} 5. O-O {[%clk 0:02:43.5]}
5... Be7 {[%clk 0:02:58]} 6. Re1 {[%clk 0:02:38]} 6... b5 {[%clk 0:02:58]} 7.
Bb3 {[%clk 0:02:38.6]} 7... d6 {[%clk 0:02:57.3]} 8. c3 {[%clk 0:02:38.6]} 8...
O-O {[%clk 0:02:56.6]} 9. h3 {[%clk 0:02:39]} 9... Bb7 {[%clk 0:02:56.6]} 10. d4
{[%clk 0:02:38.1]} 10... Nd7 {[%clk 0:02:57]} 11. Nbd2 {[%clk 0:02:30.2]} 11...
exd4 {[%clk 0:02:56.6]} 12. cxd4 {[%clk 0:02:30.2]} 12... Bf6 {[%clk 0:02:57.1]}
13. Nf1 {[%clk 0:02:30]} 13... Na5 {[%clk 0:02:51.8]} 14. Bc2 {[%clk 0:02:29.6]}
14... Re8 {[%clk 0:02:51]} 15. Ng3 {[%clk 0:02:25.7]} 15... g6 {[%clk
0:02:49.8]} 16. Bh6 {[%clk 0:02:20.6]} 16... c5 {[%clk 0:02:44.3]} 17. Rc1
{[%clk 0:02:16.2]} 17... Nc6 {[%clk 0:02:37.9]} 18. d5 {[%clk 0:02:12.9]} 18...
Nce5 {[%clk 0:02:15.9]} 19. Nh2 {[%clk 0:02:12.3]} 19... Bg5 {[%clk 0:02:09.8]}
20. Bxg5 {[%clk 0:02:11.9]} 20... Qxg5 {[%clk 0:02:10]} 21. b3 {[%clk
0:02:12.2]} 21... Rac8 {[%clk 0:02:07.1]} 22. Rf1 {[%clk 0:02:12.1]} 22... Qh4
{[%clk 0:01:44]} 23. Qe1 {[%clk 0:02:07.9]} 23... Nb6 {[%clk 0:01:41.5]} 24. f4
{[%clk 0:02:07.1]} 24... Ned7 {[%clk 0:01:41.5]} 25. Qf2 {[%clk 0:02:05.4]}
25... Re7 {[%clk 0:01:33.5]} 26. Kh1 {[%clk 0:02:00.7]} 26... Rce8 {[%clk
0:01:32.7]} 0-1

[Event "*** SCC Grand Prix: Titled Tuesday Blitz"]
[Site "Chess.com"]
[Date "2020.06.02"]
[Round "9"]
[White "kasparicy"]
[Black "Juanovic"]
[Result "1-0"]
[WhiteElo "2207"]
[BlackElo "2109"]
[TimeControl "180+1"]
[EndTime "11:45:40 PDT"]
[Termination "kasparicy won by resignation"]

1. e4 {[%clk 0:03:00.9]} 1... c5 {[%clk 0:02:59.4]} 2. Nf3 {[%clk 0:02:49.4]}
2... d6 {[%clk 0:02:58.9]} 3. d4 {[%clk 0:02:50.3]} 3... cxd4 {[%clk 0:02:58.7]}
4. Nxd4 {[%clk 0:02:48.5]} 4... Nf6 {[%clk 0:02:58.8]} 5. Nc3 {[%clk 0:02:49.4]}
5... g6 {[%clk 0:02:58.9]} 6. Be3 {[%clk 0:02:46.7]} 6... Bg7 {[%clk 0:02:58.5]}
7. Be2 {[%clk 0:02:44.7]} 7... Nc6 {[%clk 0:02:57.5]} 8. Qd2 {[%clk 0:02:45.3]}
8... O-O {[%clk 0:02:57.3]} 9. O-O-O {[%clk 0:02:42.8]} 9... d5 {[%clk
0:02:57.4]} 10. exd5 {[%clk 0:02:37.5]} 10... Nxd5 {[%clk 0:02:57]} 11. Nxc6
{[%clk 0:02:38.4]} 11... bxc6 {[%clk 0:02:57]} 12. Bd4 {[%clk 0:02:37.5]} 12...
e5 {[%clk 0:02:52.3]} 13. Bc5 {[%clk 0:02:37]} 13... Re8 {[%clk 0:02:52.5]} 14.
Bf3 {[%clk 0:02:36]} 14... Be6 {[%clk 0:02:50.9]} 15. Nxd5 {[%clk 0:02:33.7]}
15... cxd5 {[%clk 0:02:49.9]} 16. Bxd5 {[%clk 0:02:34.6]} 16... Qc7 {[%clk
0:02:14]} 17. Bxe6 {[%clk 0:02:30.6]} 17... Qxc5 {[%clk 0:02:08.7]} 18. Bb3
{[%clk 0:02:25.9]} 18... a5 {[%clk 0:01:46.2]} 19. Qd5 {[%clk 0:02:16.3]} 19...
Qe7 {[%clk 0:01:42.7]} 20. a4 {[%clk 0:02:04]} 20... Red8 {[%clk 0:01:40]} 21.
Qf3 {[%clk 0:02:01.4]} 21... e4 {[%clk 0:01:38.7]} 22. Qf4 {[%clk 0:01:41.8]}
22... Bf6 {[%clk 0:01:22.6]} 23. Kb1 {[%clk 0:01:36.9]} 23... Kg7 {[%clk
0:01:21.7]} 24. h4 {[%clk 0:01:34.6]} 24... h5 {[%clk 0:01:21.3]} 25. g3 {[%clk
0:01:33.4]} 25... Rab8 {[%clk 0:01:15.9]} 26. Rxd8 {[%clk 0:01:32.8]} 26... Rxd8
{[%clk 0:01:15.9]} 27. Re1 {[%clk 0:01:33.7]} 27... Rd4 {[%clk 0:01:14.9]} 28.
c3 {[%clk 0:01:29.6]} 28... e3 {[%clk 0:00:25.7]} 29. cxd4 {[%clk 0:01:24]} 1-0

[Event "*** SCC Grand Prix: Titled Tuesday Blitz"]
[Site "Chess.com"]
[Date "2020.06.02"]
[Round "9"]
[White "alexsergeyev"]
[Black "Chessmatus"]
[Result "0-1"]
[WhiteElo "2327"]
[BlackElo "2541"]
[TimeControl "180+1"]
[EndTime "11:45:42 PDT"]
[Termination "Chessmatus won by resignation"]

1. d4 {[%clk 0:03:00.9]} 1... Nf6 {[%clk 0:02:58.8]} 2. c4 {[%clk 0:03:00.5]}
2... g6 {[%clk 0:02:59]} 3. Nc3 {[%clk 0:03:00.1]} 3... d5 {[%clk 0:02:59.3]} 4.
Bg5 {[%clk 0:02:59.7]} 4... Ne4 {[%clk 0:02:58.2]} 5. cxd5 {[%clk 0:02:59.6]}
5... Nxg5 {[%clk 0:02:53.7]} 6. h4 {[%clk 0:02:59.5]} 6... Ne4 {[%clk
0:02:49.6]} 7. Nxe4 {[%clk 0:02:59.1]} 7... Qxd5 {[%clk 0:02:50.2]} 8. Nc3
{[%clk 0:02:59]} 8... Qd8 {[%clk 0:02:38]} 9. h5 {[%clk 0:02:58.4]} 9... Bg7
{[%clk 0:02:34.5]} 10. e3 {[%clk 0:02:57.8]} 10... c5 {[%clk 0:02:22.1]} 11.
Bb5+ {[%clk 0:02:56]} 11... Bd7 {[%clk 0:02:21.5]} 12. Nf3 {[%clk 0:02:41.6]}
12... Bxb5 {[%clk 0:02:14.4]} 13. Nxb5 {[%clk 0:02:40.6]} 13... Nc6 {[%clk
0:02:08.6]} 14. hxg6 {[%clk 0:02:30.8]} 14... hxg6 {[%clk 0:02:02]} 15. Rxh8+
{[%clk 0:02:29.2]} 15... Bxh8 {[%clk 0:02:02.9]} 16. Rc1 {[%clk 0:01:40.8]}
16... a6 {[%clk 0:01:43.3]} 17. Nc3 {[%clk 0:01:18.5]} 17... cxd4 {[%clk
0:01:42.2]} 18. exd4 {[%clk 0:01:17.6]} 18... Nxd4 {[%clk 0:01:42.4]} 19. Nxd4
{[%clk 0:01:01.9]} 19... Qxd4 {[%clk 0:01:43.3]} 20. Qf3 {[%clk 0:00:42.7]}
20... Rd8 {[%clk 0:01:32.3]} 21. Rd1 {[%clk 0:00:25.4]} 21... Qe5+ {[%clk
0:01:32.3]} 22. Kf1 {[%clk 0:00:25.5]} 22... Rxd1+ {[%clk 0:01:32.9]} 23. Nxd1
{[%clk 0:00:23.5]} 23... Qb5+ {[%clk 0:01:32.9]} 24. Kg1 {[%clk 0:00:20.2]}
24... Bxb2 {[%clk 0:01:26.4]} 25. Ne3 {[%clk 0:00:19.2]} 25... Be5 {[%clk
0:01:20.6]} 26. Nd5 {[%clk 0:00:17.4]} 26... Qb1+ {[%clk 0:01:20.6]} 0-1

[Event "*** SCC Grand Prix: Titled Tuesday Blitz"]
[Site "Chess.com"]
[Date "2020.06.02"]
[Round "9"]
[White "Semen_Khanin"]
[Black "DariaVoit"]
[Result "1-0"]
[WhiteElo "2717"]
[BlackElo "2570"]
[TimeControl "180+1"]
[EndTime "11:45:47 PDT"]
[Termination "Semen_Khanin won by resignation"]

1. e4 {[%clk 0:03:00.9]} 1... e6 {[%clk 0:03:00]} 2. d4 {[%clk 0:03:00.3]} 2...
d5 {[%clk 0:03:00.1]} 3. e5 {[%clk 0:03:01.2]} 3... c5 {[%clk 0:02:59.4]} 4. c3
{[%clk 0:03:01.8]} 4... Nc6 {[%clk 0:02:59.7]} 5. Nf3 {[%clk 0:03:02.2]} 5...
Qb6 {[%clk 0:03:00.1]} 6. Na3 {[%clk 0:03:02.2]} 6... cxd4 {[%clk 0:02:56.2]} 7.
cxd4 {[%clk 0:03:02.4]} 7... Nh6 {[%clk 0:02:53.8]} 8. Nc2 {[%clk 0:03:00.4]}
8... Nf5 {[%clk 0:02:51.7]} 9. Bd3 {[%clk 0:03:00.5]} 9... Bb4+ {[%clk
0:02:49.7]} 10. Bd2 {[%clk 0:02:51.2]} 10... Nfxd4 {[%clk 0:02:21.4]} 11. Nfxd4
{[%clk 0:02:44.9]} 11... Bxd2+ {[%clk 0:01:12.3]} 12. Qxd2 {[%clk 0:02:44.3]}
12... Qxb2 {[%clk 0:01:12.1]} 13. O-O {[%clk 0:01:31.1]} 13... Nxd4 {[%clk
0:00:51.1]} 14. Rfb1 {[%clk 0:01:30.9]} 14... Nf3+ {[%clk 0:00:51]} 15. gxf3
{[%clk 0:01:30.2]} 15... Qxe5 {[%clk 0:00:51.5]} 16. Bb5+ {[%clk 0:01:30.4]}
16... Ke7 {[%clk 0:00:48.5]} 17. f4 {[%clk 0:01:29.8]} 17... Qd6 {[%clk
0:00:37.4]} 18. Nd4 {[%clk 0:01:28.7]} 18... h6 {[%clk 0:00:12.8]} 19. Re1
{[%clk 0:01:24.2]} 19... Kf6 {[%clk 0:00:11.2]} 20. Re5 {[%clk 0:01:17.8]} 20...
a6 {[%clk 0:00:08.3]} 21. Bd3 {[%clk 0:01:16.1]} 21... b5 {[%clk 0:00:06.6]} 22.
Qb2 {[%clk 0:01:10.1]} 22... Ke7 {[%clk 0:00:05]} 23. Nf5+ {[%clk 0:01:09.9]}
1-0

[Event "*** SCC Grand Prix: Titled Tuesday Blitz"]
[Site "Chess.com"]
[Date "2020.06.02"]
[Round "9"]
[White "Olga_Zhuravleva"]
[Black "albano87"]
[Result "1/2-1/2"]
[WhiteElo "2261"]
[BlackElo "2415"]
[TimeControl "180+1"]
[EndTime "11:45:54 PDT"]
[Termination "Game drawn by agreement"]

1. e4 {[%clk 0:03:00.9]} 1... g6 {[%clk 0:02:59.5]} 2. d4 {[%clk 0:03:00.2]}
2... Bg7 {[%clk 0:03:00.1]} 3. c3 {[%clk 0:03:00.4]} 3... d6 {[%clk 0:02:59.3]}
4. Nf3 {[%clk 0:03:00.6]} 4... Nf6 {[%clk 0:02:55]} 5. Bd3 {[%clk 0:02:59.7]}
5... c5 {[%clk 0:02:51]} 6. O-O {[%clk 0:02:58.6]} 6... Nc6 {[%clk 0:02:46.8]}
7. h3 {[%clk 0:02:57.9]} 7... O-O {[%clk 0:02:42.7]} 8. a4 {[%clk 0:02:55.8]}
8... a5 {[%clk 0:02:33.3]} 9. Be3 {[%clk 0:02:52.5]} 9... b6 {[%clk 0:02:26.2]}
10. Nbd2 {[%clk 0:02:50.8]} 10... Ba6 {[%clk 0:02:24.1]} 11. Qe2 {[%clk
0:02:34.4]} 11... Bxd3 {[%clk 0:02:22.7]} 12. Qxd3 {[%clk 0:02:35.3]} 12... Qc7
{[%clk 0:02:19.7]} 13. Nc4 {[%clk 0:02:32.3]} 13... Rfd8 {[%clk 0:02:08]} 14. d5
{[%clk 0:02:25.6]} 14... Ne5 {[%clk 0:02:04.6]} 15. Nfxe5 {[%clk 0:02:25.1]}
15... dxe5 {[%clk 0:02:03.7]} 16. f4 {[%clk 0:02:23.1]} 16... Nd7 {[%clk
0:01:54.8]} 17. f5 {[%clk 0:02:19.4]} 17... Nf6 {[%clk 0:01:52.6]} 18. Rad1
{[%clk 0:02:10.4]} 18... Rd7 {[%clk 0:01:31.5]} 19. g4 {[%clk 0:01:59.3]} 19...
Ne8 {[%clk 0:01:23.4]} 20. Qd2 {[%clk 0:01:35.1]} 20... Rad8 {[%clk 0:01:16.3]}
21. Bh6 {[%clk 0:01:32.6]} 21... e6 {[%clk 0:01:04.9]} 22. Bxg7 {[%clk
0:01:11.7]} 22... Kxg7 {[%clk 0:01:03.9]} 23. fxe6 {[%clk 0:01:05.1]} 23... fxe6
{[%clk 0:00:58.5]} 24. Qg5 {[%clk 0:00:57.6]} 24... exd5 {[%clk 0:00:43.6]} 25.
Nxe5 {[%clk 0:00:57.1]} 25... dxe4 {[%clk 0:00:28.2]} 26. Rxd7+ {[%clk 0:00:51]}
26... Rxd7 {[%clk 0:00:27.7]} 27. Nxd7 {[%clk 0:00:50.6]} 27... Qg3+ {[%clk
0:00:26.8]} 1/2-1/2

[Event "*** SCC Grand Prix: Titled Tuesday Blitz"]
[Site "Chess.com"]
[Date "2020.06.02"]
[Round "9"]
[White "MrChampion_Coach"]
[Black "imdarealist"]
[Result "0-1"]
[WhiteElo "2437"]
[BlackElo "2280"]
[TimeControl "180+1"]
[EndTime "11:46:07 PDT"]
[Termination "imdarealist won on time"]

1. e4 {[%clk 0:03:00.9]} 1... e5 {[%clk 0:02:59.2]} 2. Nf3 {[%clk 0:03:00.5]}
2... Nf6 {[%clk 0:02:59.7]} 3. Nc3 {[%clk 0:03:00.1]} 3... Bb4 {[%clk
0:02:58.9]} 4. Nd5 {[%clk 0:02:49.2]} 4... Nxd5 {[%clk 0:02:54.2]} 5. exd5
{[%clk 0:02:50.1]} 5... O-O {[%clk 0:02:54.1]} 6. c3 {[%clk 0:02:48.6]} 6... Bc5
{[%clk 0:02:47]} 7. d3 {[%clk 0:02:33.2]} 7... c6 {[%clk 0:02:41.6]} 8. Qb3
{[%clk 0:02:26.6]} 8... cxd5 {[%clk 0:02:31]} 9. Bg5 {[%clk 0:02:18.6]} 9... Qb6
{[%clk 0:02:28.1]} 10. Qxb6 {[%clk 0:02:15]} 10... Bxb6 {[%clk 0:02:26.4]} 11.
Be2 {[%clk 0:02:07.7]} 11... Nc6 {[%clk 0:02:22.8]} 12. O-O {[%clk 0:02:04.2]}
12... d6 {[%clk 0:02:19.2]} 13. h3 {[%clk 0:02:01.9]} 13... d4 {[%clk
0:02:03.9]} 14. Nd2 {[%clk 0:01:52.4]} 14... h6 {[%clk 0:01:44.3]} 15. Be7
{[%clk 0:01:51.3]} 15... Nxe7 {[%clk 0:01:42.8]} 16. Nc4 {[%clk 0:01:48.5]}
16... Bc7 {[%clk 0:01:34.3]} 17. cxd4 {[%clk 0:01:48.4]} 17... exd4 {[%clk
0:01:33.5]} 18. Bf3 {[%clk 0:01:47.9]} 18... d5 {[%clk 0:01:29.2]} 19. Nd2
{[%clk 0:01:47]} 19... Be6 {[%clk 0:01:26.1]} 20. Rfe1 {[%clk 0:01:47.9]} 20...
Rac8 {[%clk 0:01:20]} 21. a3 {[%clk 0:01:48]} 21... Bb6 {[%clk 0:01:12.9]} 22.
Bd1 {[%clk 0:01:44.8]} 22... Nf5 {[%clk 0:01:06.7]} 23. Nf3 {[%clk 0:01:41.9]}
23... Rc7 {[%clk 0:01:02.4]} 24. Bb3 {[%clk 0:01:40.4]} 24... Rfc8 {[%clk
0:00:59.6]} 0-1

[Event "*** SCC Grand Prix: Titled Tuesday Blitz"]
[Site "Chess.com"]
[Date "2020.06.02"]
[Round "9"]
[White "Savva09022009"]
[Black "Savagelittlemole"]
[Result "1-0"]
[WhiteElo "2417"]
[BlackElo "2565"]
[TimeControl "180+1"]
[EndTime "11:46:12 PDT"]
[Termination "Savva09022009 won by checkmate"]

1. d4 {[%clk 0:03:00.9]} 1... Nf6 {[%clk 0:02:59.7]} 2. Nc3 {[%clk 0:03:00.2]}
2... d5 {[%clk 0:02:59.1]} 3. Bf4 {[%clk 0:03:00.5]} 3... c6 {[%clk 0:02:52.2]}
4. e3 {[%clk 0:02:55.8]} 4... Bf5 {[%clk 0:02:52]} 5. f3 {[%clk 0:02:54.4]} 5...
Nbd7 {[%clk 0:02:49.9]} 6. g4 {[%clk 0:02:53.4]} 6... Bg6 {[%clk 0:02:49.6]} 7.
h4 {[%clk 0:02:52.2]} 7... h6 {[%clk 0:02:46]} 8. Bd3 {[%clk 0:02:49.8]} 8...
Bxd3 {[%clk 0:02:44.9]} 9. Qxd3 {[%clk 0:02:49.1]} 9... e6 {[%clk 0:02:41.5]}
10. O-O-O {[%clk 0:02:48.3]} 10... Qa5 {[%clk 0:02:40.2]} 11. Nge2 {[%clk
0:02:46.9]} 11... b5 {[%clk 0:02:40]} 12. g5 {[%clk 0:02:44.2]} 12... Nh5 {[%clk
0:02:35]} 13. g6 {[%clk 0:02:43.1]} 13... f6 {[%clk 0:02:25.7]} 14. e4 {[%clk
0:02:27.8]} 14... b4 {[%clk 0:02:17.8]} 15. Nb1 {[%clk 0:02:18.4]} 15... Qxa2
{[%clk 0:02:17.7]} 16. Qe3 {[%clk 0:02:13.9]} 16... Be7 {[%clk 0:02:00.3]} 17.
exd5 {[%clk 0:02:10]} 17... Qxd5 {[%clk 0:02:01.2]} 18. Qd3 {[%clk 0:01:47.8]}
18... O-O {[%clk 0:01:48.5]} 19. c4 {[%clk 0:01:46]} 19... Qa5 {[%clk
0:01:41.4]} 20. Qe4 {[%clk 0:01:42.5]} 20... Nxf4 {[%clk 0:01:15.9]} 21. Nxf4
{[%clk 0:01:39.3]} 21... e5 {[%clk 0:01:16.2]} 22. Qxc6 {[%clk 0:01:37]} 22...
exf4 {[%clk 0:01:12.1]} 23. Qxd7 {[%clk 0:01:35.6]} 23... Rac8 {[%clk
0:00:58.7]} 24. Qxe7 {[%clk 0:01:29.7]} 24... Rxc4+ {[%clk 0:00:59.1]} 25. Kd2
{[%clk 0:01:29.5]} 25... Rxd4+ {[%clk 0:00:58.9]} 26. Ke2 {[%clk 0:01:28.3]}
26... Qb5+ {[%clk 0:00:40.8]} 27. Kf2 {[%clk 0:01:26.4]} 27... Qb6 {[%clk
0:00:41.4]} 28. Kg2 {[%clk 0:01:22.3]} 28... Rfd8 {[%clk 0:00:34]} 29. Rxd4
{[%clk 0:01:18.3]} 29... Qxd4 {[%clk 0:00:32.9]} 30. Re1 {[%clk 0:01:16.4]}
30... Qxb2+ {[%clk 0:00:06.5]} 31. Kh3 {[%clk 0:01:13.6]} 31... Qd4 {[%clk
0:00:06.6]} 32. Qe8+ {[%clk 0:01:04.9]} 32... Rxe8 {[%clk 0:00:05.8]} 33. Rxe8#
{[%clk 0:01:03.7]} 1-0

[Event "*** SCC Grand Prix: Titled Tuesday Blitz"]
[Site "Chess.com"]
[Date "2020.06.02"]
[Round "9"]
[White "Mbneu"]
[Black "anastasiyakarlovych"]
[Result "1-0"]
[WhiteElo "2233"]
[BlackElo "1926"]
[TimeControl "180+1"]
[EndTime "11:46:12 PDT"]
[Termination "Mbneu won by resignation"]

1. d4 {[%clk 0:03:00.9]} 1... Nf6 {[%clk 0:02:57.7]} 2. c4 {[%clk 0:02:57.3]}
2... c5 {[%clk 0:02:57.6]} 3. d5 {[%clk 0:02:56.2]} 3... b5 {[%clk 0:02:57.6]}
4. a4 {[%clk 0:02:55.1]} 4... b4 {[%clk 0:02:46]} 5. g3 {[%clk 0:02:53.2]} 5...
g6 {[%clk 0:02:45.3]} 6. b3 {[%clk 0:02:52.4]} 6... Bg7 {[%clk 0:02:43.8]} 7.
Bb2 {[%clk 0:02:53]} 7... d6 {[%clk 0:02:40.5]} 8. Bg2 {[%clk 0:02:53.2]} 8...
Nbd7 {[%clk 0:02:33.9]} 9. Nf3 {[%clk 0:02:37.8]} 9... O-O {[%clk 0:02:31]} 10.
O-O {[%clk 0:02:35.5]} 10... Rb8 {[%clk 0:01:59.7]} 11. Re1 {[%clk 0:02:27.3]}
11... Qc7 {[%clk 0:01:56.7]} 12. Nbd2 {[%clk 0:02:21.9]} 12... e5 {[%clk
0:01:51.6]} 13. dxe6 {[%clk 0:02:20.3]} 13... fxe6 {[%clk 0:01:51]} 14. Ng5
{[%clk 0:02:18]} 14... Re8 {[%clk 0:01:25.4]} 15. Rb1 {[%clk 0:02:00.1]} 15...
d5 {[%clk 0:01:09.8]} 16. cxd5 {[%clk 0:01:41.1]} 16... exd5 {[%clk 0:01:08.9]}
17. e4 {[%clk 0:01:40.1]} 17... Bb7 {[%clk 0:00:35.7]} 18. exd5 {[%clk
0:01:34.3]} 18... Bxd5 {[%clk 0:00:31.7]} 19. Bxd5+ {[%clk 0:01:26.5]} 19...
Nxd5 {[%clk 0:00:30.6]} 20. Bxg7 {[%clk 0:01:20.6]} 20... Kxg7 {[%clk
0:00:30.2]} 21. Qf3 {[%clk 0:01:00.7]} 21... Ne5 {[%clk 0:00:20.6]} 22. Qxd5
{[%clk 0:00:47.1]} 22... Rbd8 {[%clk 0:00:20.3]} 23. Ne6+ {[%clk 0:00:42.5]}
23... Rxe6 {[%clk 0:00:18]} 24. Qxe6 {[%clk 0:00:41]} 24... Rxd2 {[%clk
0:00:17.5]} 25. Qxe5+ {[%clk 0:00:40.5]} 25... Qxe5 {[%clk 0:00:17.1]} 26. Rxe5
{[%clk 0:00:40.2]} 1-0

[Event "*** SCC Grand Prix: Titled Tuesday Blitz"]
[Site "Chess.com"]
[Date "2020.06.02"]
[Round "9"]
[White "jonaszmb"]
[Black "Carnivoras"]
[Result "0-1"]
[WhiteElo "2430"]
[BlackElo "2608"]
[TimeControl "180+1"]
[EndTime "11:46:13 PDT"]
[Termination "Carnivoras won by resignation"]

1. e4 {[%clk 0:03:00.9]} 1... e5 {[%clk 0:02:59.3]} 2. Nf3 {[%clk 0:03:00.9]}
2... Nc6 {[%clk 0:02:58]} 3. d4 {[%clk 0:03:01.1]} 3... exd4 {[%clk 0:02:57.5]}
4. Bc4 {[%clk 0:03:00.6]} 4... d6 {[%clk 0:02:54.8]} 5. Nxd4 {[%clk 0:02:58.8]}
5... Nf6 {[%clk 0:02:53.2]} 6. Nxc6 {[%clk 0:02:57.5]} 6... bxc6 {[%clk
0:02:54.1]} 7. O-O {[%clk 0:02:55.1]} 7... Be7 {[%clk 0:02:54]} 8. Re1 {[%clk
0:02:54.8]} 8... O-O {[%clk 0:02:50.5]} 9. Nc3 {[%clk 0:02:50.9]} 9... Nd7
{[%clk 0:02:48.1]} 10. Bb3 {[%clk 0:02:36.4]} 10... a5 {[%clk 0:02:46.2]} 11.
Bf4 {[%clk 0:02:28.2]} 11... Nc5 {[%clk 0:02:43.4]} 12. e5 {[%clk 0:02:17.1]}
12... a4 {[%clk 0:02:39.6]} 13. Bc4 {[%clk 0:02:11.1]} 13... d5 {[%clk
0:02:35.9]} 14. Bf1 {[%clk 0:02:08.1]} 14... Bf5 {[%clk 0:02:35.3]} 15. a3
{[%clk 0:01:53.1]} 15... Rb8 {[%clk 0:02:29.4]} 16. Qc1 {[%clk 0:01:45.3]} 16...
Qd7 {[%clk 0:02:22.8]} 17. Be3 {[%clk 0:01:24.9]} 17... d4 {[%clk 0:02:16.1]}
18. Rd1 {[%clk 0:01:24.1]} 18... dxc3 {[%clk 0:02:16.1]} 19. Rxd7 {[%clk
0:01:08.3]} 19... cxb2 {[%clk 0:02:13.3]} 20. Qxb2 {[%clk 0:01:03.5]} 20... Rxb2
{[%clk 0:02:09.2]} 21. Rxe7 {[%clk 0:01:03.1]} 21... Ne6 {[%clk 0:02:09.1]} 22.
Bd3 {[%clk 0:00:34.8]} 22... Bxd3 {[%clk 0:02:06.2]} 23. cxd3 {[%clk 0:00:35.7]}
23... Rd8 {[%clk 0:02:04.6]} 24. h4 {[%clk 0:00:04.3]} 24... Kf8 {[%clk
0:02:03.6]} 25. Rxe6 {[%clk 0:00:04.6]} 25... fxe6 {[%clk 0:02:04.5]} 26. d4
{[%clk 0:00:04.6]} 26... Kf7 {[%clk 0:02:02.5]} 27. Rc1 {[%clk 0:00:04.7]} 27...
Rb3 {[%clk 0:01:53.1]} 28. Rxc6 {[%clk 0:00:04.8]} 28... Rxa3 {[%clk 0:01:51.7]}
29. Rxc7+ {[%clk 0:00:05.3]} 29... Kg8 {[%clk 0:01:51.1]} 30. h5 {[%clk
0:00:04]} 30... Ra1+ {[%clk 0:01:50.8]} 31. Kh2 {[%clk 0:00:04.1]} 31... Ra8
{[%clk 0:01:46.8]} 32. h6 {[%clk 0:00:03.9]} 32... gxh6 {[%clk 0:01:47]} 33.
Bxh6 {[%clk 0:00:03.6]} 33... a3 {[%clk 0:01:47.3]} 34. Rg7+ {[%clk 0:00:03]}
34... Kh8 {[%clk 0:01:47.5]} 35. Rb7 {[%clk 0:00:02.9]} 35... a2 {[%clk
0:01:47.3]} 36. Bg7+ {[%clk 0:00:03.3]} 36... Kg8 {[%clk 0:01:46.7]} 37. Bf6
{[%clk 0:00:02]} 37... Rb1 {[%clk 0:01:46.1]} 38. Rg7+ {[%clk 0:00:01.5]} 38...
Kf8 {[%clk 0:01:46.3]} 39. Rxh7 {[%clk 0:00:02]} 39... a1=Q {[%clk 0:01:46]} 40.
Rh8+ {[%clk 0:00:02.2]} 40... Kf7 {[%clk 0:01:46.2]} 41. Rh7+ {[%clk 0:00:02.7]}
41... Ke8 {[%clk 0:01:46]} 42. Rh8+ {[%clk 0:00:02.8]} 42... Kd7 {[%clk
0:01:45.8]} 43. Rh7+ {[%clk 0:00:03.3]} 43... Kc6 {[%clk 0:01:45.9]} 44. d5+
{[%clk 0:00:04]} 44... Kxd5 {[%clk 0:01:45.3]} 45. f3 {[%clk 0:00:04.3]} 45...
Rh1+ {[%clk 0:01:44.2]} 46. Kg3 {[%clk 0:00:04.9]} 46... Rxh7 {[%clk 0:01:44.5]}
47. f4 {[%clk 0:00:05.8]} 47... Rg8+ {[%clk 0:01:44]} 48. Kf3 {[%clk 0:00:06.2]}
48... Qc3+ {[%clk 0:01:44.4]} 49. Kf2 {[%clk 0:00:06.6]} 49... Rh2 {[%clk
0:01:44.1]} 0-1